bitfinex-derivatives/quotes_ETHF0:USTF0_20260131
["timestamp","ask_amount","ask_price","bid_price","bid_amount"]
[1769846533337,3.86781645,2682.9,2682.7,0.18668]
[1769846533536,3.86781645,2682.9,2682.1,3.6376843]
[1769846534038,3.86781645,2682.9,2682.7,0.18668]
[1769846534234,3.86781645,2682.9,2682.1,3.6376843]
[1769846534734,3.86781645,2682.9,2682.7,0.18668]
[1769846534936,3.86781645,2682.9,2682.1,3.6376843]
[1769846535133,3.86781645,2682.9,2682.1,0.19099585]
[1769846536541,4.377,2683.7,2682.1,0.19099585]
[1769846536542,3.86781645,2682.7,2682.1,0.19099585]
[1769846537043,3.86781645,2682.7,2682.2,0.18672]
[1769846537745,3.86781645,2682.7,2682.2,0.1781191]
[1769846538154,3.86781645,2682.5,2682.1,0.00427585]
[1769846538546,3.48715645,2682.5,2682.1,0.00427585]
[1769846538748,10.303,2683.3,2682.1,0.00427585]
[1769846538940,10.303,2683.3,2682.1,3.6376843]
[1769846539241,3.97813215,2683.2,2682.6,0.18669]
[1769846539638,3.97813215,2683.2,2682.2,3.63340845]
[1769846540247,3.97813215,2683.2,2682.6,0.18669]
[1769846540541,3.86781645,2683.1,2682.6,0.18669]
[1769846540847,4.31008795,2683.0,2682.6,0.09927078]
[1769846541038,3.86781645,2682.9,2682.6,0.09927078]
[1769846546352,3.86781645,2682.9,2682.1,3.6376843]
[1769846546556,3.86781645,2682.9,2682.1,0.00427585]
[1769846546747,3.86781645,2682.7,2682.1,0.00427585]
[1769846549556,3.86781645,2682.5,2682.1,0.00427585]
[1769846549752,3.86781645,2682.5,2681.9,0.18674]
[1769846549958,3.86781645,2682.3,2681.9,0.18674]
[1769846550856,3.86781645,2682.3,2681.9,0.18994664]
[1769846553062,3.86781645,2682.3,2681.4,3.63340845]
[1769846553962,3.86781645,2682.3,2681.4,3.63820999]
[1769846554162,3.86781645,2682.3,2681.9,0.18674]
[1769846554755,3.86781645,2682.3,2681.4,3.63820999]
[1769846554963,3.86781645,2682.1,2681.4,0.00480154]
[1769846555355,3.86781645,2681.9,2681.4,0.00480154]
[1769846555553,3.87081247,2681.9,2681.2,0.18678]
[1769846555861,3.86781645,2681.7,2681.2,0.18678]
[1769846556661,3.86781645,2681.7,2681.2,0.18949602]
[1769846560556,3.51805827,2681.9,2681.2,3.7355616]
[1769846560860,4.17605207,2681.8,2681.2,3.7355616]
[1769846561659,7.69111432,2681.8,2681.2,3.7355616]
[1769846561859,7.69111432,2681.8,2681.2,0.18949602]
[1769846562062,3.51506225,2681.7,2681.2,0.18949602]
[1769846564470,3.51805827,2681.9,2681.2,3.7355616]
[1769846564861,4.16661115,2681.8,2681.2,3.7355616]
[1769846565065,0.00299602,2681.9,2681.2,3.5487816]
[1769846566068,0.30352995,2682.9,2681.9,3.54606558]
[1769846566275,2.189,2683.2,2682.1,3.73278558]
[1769846566573,4.14672241,2682.6,2682.1,3.73278558]
[1769846566773,6.28256658,2683.2,2682.1,3.73278558]
[1769846566970,2.189,2683.2,2682.1,3.73278558]
[1769846567164,4.09356658,2683.1,2682.1,3.73278558]
[1769846568075,3.51506225,2683.0,2682.1,3.73278558]
[1769846568478,3.51506225,2682.8,2682.1,0.18672]
[1769846568877,3.51506225,2682.8,2681.3,3.54606558]
[1769846569077,2.19264787,2683.2,2681.3,3.54606558]
[1769846569078,3.51506225,2682.6,2681.3,3.54606558]
[1769846569579,3.51506225,2682.4,2681.3,3.54606558]
[1769846570278,3.51506225,2682.4,2681.7,0.18675]
[1769846570776,3.51506225,2682.2,2681.7,0.18675]
[1769846571476,3.51506225,2682.4,2681.7,3.73281558]
[1769846571779,4.21538019,2682.3,2681.7,3.73281558]
[1769846572173,3.51506225,2682.7,2681.9,3.54606558]
[1769846572572,4.24962353,2682.6,2681.9,3.54606558]
[1769846572879,7.76468578,2682.6,2681.9,3.73280558]
[1769846573274,3.51506225,2682.6,2681.9,3.73280558]
[1769846573475,4.24962353,2682.5,2681.9,3.73280558]
[1769846574581,7.76468578,2682.5,2681.9,0.18674]
[1769846574881,3.51506225,2682.5,2681.9,0.18674]
[1769846575284,4.04244479,2682.4,2681.9,0.18674]
[1769846575581,4.04244479,2682.4,2681.9,3.73280558]
[1769846575982,3.51506225,2682.5,2681.9,3.73280558]
[1769846576181,3.51506225,2682.9,2682.0,3.54606558]
[1769846576581,3.51506225,2682.8,2682.0,3.54606558]
[1769846576978,4.26810326,2682.7,2682.0,3.54606558]
[1769846577180,4.26810326,2682.7,2682.1,0.18672]
[1769846577784,4.26810326,2682.7,2682.1,3.73278558]
[1769846578284,7.78316551,2682.7,2682.1,0.18672]
[1769846579186,3.51506225,2682.6,2682.1,0.18672]
[1769846582090,3.51506225,2683.1,2682.1,3.73278558]
[1769846582389,3.51506225,2683.0,2682.1,3.73278558]
[1769846582689,3.92994301,2682.9,2682.1,3.73278558]
[1769846582891,3.51506225,2682.8,2682.1,3.73278558]
[1769846583395,3.92994301,2682.7,2682.1,3.73278558]
[1769846585689,3.92994301,2682.7,2682.2,3.73278558]
[1769846592489,3.92994301,2682.7,2682.3,3.82669174]
[1769846592792,2.78549301,2682.7,2682.3,3.63998174]
[1769846592993,3.89264858,2683.0,2682.3,3.63998174]
[1769846593390,4.17787114,2682.9,2682.3,3.63998174]
[1769846593692,4.17787114,2682.9,2682.5,3.63998174]
[1769846596593,4.17787114,2682.9,2682.4,0.1867]
[1769846596797,8.07051972,2682.9,2682.4,3.82668174]
[1769846599596,8.07051972,2682.9,2682.4,0.1867]
[1769846599899,8.07051972,2682.9,2682.4,3.82668174]
[1769846602902,3.89264858,2682.8,2682.4,0.1867]
[1769846603404,3.89264858,2683.1,2682.4,0.1867]
[1769846603694,8.09948719,2683.1,2682.4,0.1867]
[1769846603900,3.89264858,2683.0,2682.4,0.1867]
[1769846604208,4.20683861,2682.9,2682.4,0.1867]
[1769846604399,8.09948719,2682.9,2682.4,0.1867]
[1769846604902,8.09948719,2682.9,2682.4,3.82668174]
[1769846608105,3.89264858,2682.8,2681.5,2.188]
[1769846608506,3.89264858,2682.6,2681.5,2.188]
[1769846609108,3.89264858,2682.6,2682.0,0.18673]
[1769846616409,3.89264858,2682.4,2682.0,0.18673]
[1769846616919,3.89264858,2682.4,2681.6,3.63998174]
[1769846617518,3.89264858,2682.4,2682.0,0.18673]
[1769846617812,3.89264858,2682.4,2681.6,3.63998174]
[1769846621613,3.89264858,2682.4,2682.0,0.10384]
[1769846625814,3.60908369,2682.9,2682.0,0.10384]
[1769846626218,3.60908369,2682.8,2682.0,0.10384]
[1769846626515,4.09212919,2682.7,2682.0,0.10384]
[1769846626716,3.60908369,2682.6,2682.0,0.10384]
[1769846627013,4.20149597,2682.5,2682.0,0.10384]
[1769846627216,3.60908369,2682.4,2682.0,0.10384]
[1769846631819,4.21415525,2682.3,2681.2,0.00271602]
[1769846632118,3.60908369,2682.2,2681.2,0.00271602]
[1769846632512,3.60908369,2682.0,2681.2,0.00271602]
[1769846632713,3.60908369,2682.0,2681.3,0.18678]
[1769846632914,3.96123608,2681.9,2681.4,3.8115421]
[1769846633115,3.60908369,2682.3,2681.4,3.8115421]
[1769846633514,3.96123608,2682.1,2681.4,3.8115421]
[1769846633816,3.60908369,2682.2,2681.4,3.8115421]
[1769846634322,7.66730361,2682.2,2681.4,3.8115421]
[1769846635323,3.60908369,2682.1,2681.4,3.8115421]
[1769846635624,3.60908369,2681.9,2681.2,0.00271602]
[1769846636025,3.60908369,2681.7,2681.2,0.00271602]
[1769846636213,3.60908369,2681.7,2681.4,0.18677]
[1769846636414,4.001807,2681.6,2680.7,3.6247721]
[1769846636719,3.60908369,2681.6,2680.9,0.1868]
[1769846636913,3.60908369,2681.6,2680.9,3.8115721]
[1769846637118,3.9324956,2681.5,2680.9,3.8115721]
[1769846637525,3.9324956,2681.5,2680.9,3.81427518]
[1769846638027,7.54157929,2681.5,2680.9,3.81427518]
[1769846639029,3.60908369,2681.4,2680.2,0.18685]
[1769846639325,4.14014357,2681.3,2680.2,0.18685]
[1769846639528,3.60908369,2681.2,2680.2,0.18685]
[1769846639933,3.60908369,2681.0,2680.3,0.18685]
[1769846640233,4.14736452,2680.9,2680.3,0.18685]
[1769846640630,4.14736452,2680.9,2680.3,3.8116221]
[1769846640833,3.60908369,2681.0,2680.3,3.8116221]
[1769846644235,3.60908369,2681.0,2680.4,0.18684]
[1769846645237,3.60908369,2681.0,2680.2,0.00382318]
[1769846645429,4.09875572,2680.9,2680.4,0.18684]
[1769846645732,3.60908369,2680.8,2680.2,0.00382318]
[1769846647127,3.60908369,2680.8,2680.4,0.18684]
[1769846647536,3.55172819,2681.1,2680.4,0.18684]
[1769846647842,7.61226699,2681.1,2680.4,0.18684]
[1769846648042,3.55172819,2681.0,2680.4,0.18684]
[1769846648244,3.55172819,2681.0,2680.4,4.0469526]
[1769846648446,4.0605388,2680.9,2680.4,4.0469526]
[1769846649941,3.55492931,2681.2,2680.4,4.0469526]
[1769846650246,3.90487612,2681.1,2680.4,4.0469526]
[1769846656046,3.90487612,2681.1,2680.6,3.8601126]
[1769846656243,3.55492931,2681.2,2680.6,3.8601126]
[1769846656244,0.00320112,2681.2,2680.6,3.8601126]
[1769846657250,0.00320112,2681.2,2680.2,0.00382318]
[1769846657251,3.55172819,2681.1,2680.2,0.00382318]
[1769846657557,3.55172819,2681.0,2679.9,0.18688]
[1769846657748,5.91272819,2681.0,2679.9,0.18688]
[1769846658051,3.55172819,2680.8,2679.2,0.18692]
[1769846658454,3.55172819,2680.6,2679.2,0.19104688]
[1769846658754,4.29239963,2680.5,2679.2,0.19104688]
[1769846658952,3.55172819,2680.4,2679.2,0.19104688]
[1769846659361,3.55172819,2680.2,2679.2,0.19104688]
[1769846659853,3.55172819,2680.0,2679.2,0.19104688]
[1769846660248,3.55172819,2679.8,2679.2,0.19104688]
[1769846660648,3.55172819,2679.6,2679.2,0.19104688]
[1769846661950,3.55172819,2679.6,2678.9,3.8601126]
[1769846661951,3.40234462,2679.4,2678.7,3.8601126]
[1769846662347,4.09329004,2679.3,2678.7,3.8601126]
[1769846662752,4.09329004,2679.3,2679.2,0.18692]
[1769846662958,4.09677183,2679.3,2679.2,0.18990821]
[1769846663756,4.09677183,2679.3,2679.2,0.00298821]
[1769846664156,4.09677183,2679.3,2678.7,3.8601126]
[1769846665157,4.09677183,2679.3,2678.7,3.86408]
[1769846668759,7.43404532,2679.3,2678.7,0.0039674]
[1769846669260,3.33727349,2679.2,2678.7,0.0039674]
[1769846669658,3.33330609,2679.0,2678.3,3.8601126]
[1769846669956,7.34091001,2678.9,2677.8,3.8601126]
[1769846670358,3.14633609,2678.9,2677.8,3.8601126]
[1769846670559,3.14633609,2678.9,2677.8,3.8634684]
[1769846671264,3.14633609,2678.9,2678.2,3.8601126]
[1769846673064,3.14633609,2678.9,2678.1,0.187]
[1769846673267,3.1225423,2678.7,2678.1,0.187]
[1769846674565,4.27829077,2678.6,2678.1,4.0471126]
[1769846675067,3.1225423,2678.8,2678.1,4.0471126]
[1769846675468,4.13159842,2678.7,2678.1,4.0471126]
[1769846680370,3.04047793,2678.6,2678.1,0.187]
[1769846680568,3.04047793,2678.6,2677.8,0.0033558]
[1769846680873,2.83928449,2678.4,2677.8,0.0033558]
[1769846681177,4.00497061,2678.3,2678.1,0.187]
[1769846681569,3.62853061,2678.3,2678.1,3.81190598]
[1769846681767,2.83928449,2678.7,2678.1,3.81190598]
[1769846682073,4.26482455,2678.6,2678.1,3.81190598]
[1769846686681,2.80725546,2678.5,2677.8,3.62826178]
[1769846687176,2.80725546,2678.5,2678.1,0.187]
[1769846687483,2.80725546,2678.5,2677.8,3.62826178]
[1769846687679,2.8128168,2678.3,2677.5,0.18704]
[1769846687981,2.8128168,2678.1,2677.5,0.18704]
[1769846688182,2.8128168,2678.1,2677.2,3.62490598]
[1769846688367,3.13646996,2678.0,2677.2,3.62490598]
[1769846688571,3.13646996,2678.0,2677.2,3.62858765]
[1769846688779,2.8128168,2678.0,2677.2,3.62858765]
[1769846688982,4.11871349,2677.9,2677.2,3.62858765]
[1769846690177,4.11871349,2677.9,2677.5,0.18704]
[1769846694485,4.11871349,2677.9,2677.5,3.81194598]
[1769846694884,4.20403417,2678.1,2677.5,3.81194598]
[1769846695184,2.81709127,2678.2,2677.5,3.81194598]
[1769846695484,2.29187445,2678.0,2677.7,3.62490598]
[1769846695689,3.83927801,2678.1,2677.7,3.62490598]
[1769846695885,4.23510801,2678.5,2677.7,3.81193598]
[1769846696182,0.30352995,2678.6,2677.7,3.81193598]
[1769846696386,4.12000241,2678.5,2677.7,3.81193598]
[1769846699778,4.12000241,2678.5,2677.9,3.62490598]
[1769846699988,4.18189155,2678.6,2677.9,3.62490598]
[1769846700286,2.81567053,2678.7,2677.9,3.62490598]
[1769846700586,4.18189155,2678.6,2677.9,3.62490598]
[1769846701584,6.94173601,2678.6,2677.9,3.62490598]
[1769846701884,2.75984446,2678.6,2677.9,3.62490598]
[1769846702083,4.03592001,2678.8,2677.9,3.81191598]
[1769846702280,3.27337001,2678.5,2678.1,3.62490598]
[1769846702484,4.03592001,2678.8,2678.3,3.62490598]
[1769846702686,0.30701174,2679.3,2678.6,3.62490598]
[1769846702878,0.00348179,2679.3,2678.8,3.62490598]
[1769846703195,3.86699445,2679.2,2678.8,3.62490598]
[1769846703378,0.30352995,2679.9,2679.1,3.81183598]
[1769846703686,4.24898445,2679.8,2679.1,3.81183598]
[1769846704386,4.25204652,2679.8,2679.1,3.81625817]
[1769846704884,5.01951365,2679.7,2679.1,0.19135219]
[1769846705087,5.01951365,2679.7,2678.9,3.62490598]
[1769846705280,4.02535912,2679.6,2678.9,3.62490598]
[1769846706085,4.02535912,2679.6,2678.9,3.62774801]
[1769846706285,4.02535912,2679.6,2679.1,3.81183598]
[1769846706487,6.12404183,2679.6,2679.1,3.81183598]
[1769846706981,3.01116328,2679.5,2679.1,0.18693]
[1769846707282,5.10984599,2679.5,2679.1,0.18693]
[1769846707479,7.13161578,2679.4,2678.7,1.98340704]
[1769846707680,3.8213795,2679.3,2678.7,1.98340704]
[1769846707880,4.1204525,2679.7,2678.8,1.24005966]
[1769846708087,0.00306207,2679.8,2678.8,1.24005966]
[1769846708591,3.52781266,2679.7,2679.1,1.24005966]
[1769846708884,0.00306207,2679.8,2679.4,0.18691]
[1769846709489,0.00306207,2679.8,2679.5,3.69099772]
[1769846711787,0.00306207,2679.8,2679.4,3.87790772]
[1769846712485,3.82444157,2679.8,2679.4,0.18691]
[1769846712690,3.8213795,2679.6,2678.8,3.69495085]
[1769846713288,3.8213795,2679.6,2678.8,3.88190085]
[1769846713678,4.17293851,2679.5,2678.8,3.88190085]
[1769846713884,7.99431801,2679.5,2678.8,3.88190085]
[1769846714286,3.8213795,2679.5,2678.8,0.19090313]
[1769846714490,8.03887722,2679.4,2678.8,0.19090313]
[1769846714990,3.8213795,2679.3,2678.6,3.69099772]
[1769846715191,7.83864633,2679.3,2678.6,3.69099772]
[1769846715386,3.8213795,2679.3,2678.6,3.69099772]
[1769846715587,4.01726683,2679.2,2678.6,3.69099772]
[1769846715986,4.01726683,2679.2,2678.6,3.69475861]
[1769846716191,4.01726683,2679.2,2678.8,0.18695]
[1769846717288,4.01726683,2679.2,2678.6,3.69475861]
[1769846718199,4.01726683,2679.2,2678.8,0.18695]
[1769846718394,4.01726683,2679.2,2678.8,3.87794772]
[1769846720094,0.30352995,2679.7,2679.2,3.87791772]
[1769846720491,3.2730093,2679.6,2679.2,3.87791772]
[1769846720791,2.4773293,2679.6,2679.2,3.87791772]
[1769846720999,1.7033793,2679.6,2679.2,3.87791772]
[1769846721386,3.8213795,2679.5,2679.2,0.18692]
[1769846721595,5.5247588,2679.6,2678.8,3.69099772]
[1769846721796,3.8213795,2679.6,2678.8,3.69099772]
[1769846723004,3.8213795,2679.6,2679.2,0.18692]
[1769846723205,3.82444157,2679.8,2679.2,0.18692]
[1769846723505,4.03132097,2679.7,2679.2,0.18692]
[1769846723703,4.03132097,2679.7,2679.2,3.87791772]
[1769846727496,7.85270047,2679.7,2679.2,0.18692]
[1769846727697,3.8213795,2679.6,2679.0,3.69099772]
[1769846727902,3.8213795,2679.6,2678.6,0.00376089]
[1769846728105,3.8213795,2679.4,2678.4,3.69099772]
[1769846728405,4.04562067,2679.3,2678.4,3.69099772]
[1769846728909,3.8213795,2679.4,2677.6,2.191]
[1769846728910,3.82444157,2679.8,2679.0,3.87793772]
[1769846729105,0.00306207,2679.8,2679.0,3.88229351]
[1769846729306,4.19786551,2679.6,2679.0,3.88229351]
[1769846729505,4.19786551,2679.7,2679.0,3.88229351]
[1769846729810,3.82444157,2679.8,2679.0,0.19129579]
[1769846730007,3.8213795,2679.6,2678.5,3.69099772]
[1769846730407,3.8213795,2679.4,2678.6,0.18697]
[1769846730810,3.8213795,2679.2,2677.7,3.69099772]
[1769846731005,3.8213795,2679.2,2678.3,0.18699]
[1769846731208,3.8213795,2679.0,2678.3,0.18699]
[1769846731609,3.32311642,2678.9,2678.4,0.18698]
[1769846731808,2.92540642,2678.9,2678.4,0.18698]
[1769846732113,1.73511642,2678.9,2678.4,3.87797772]
[1769846732304,5.16514592,2678.9,2678.4,0.18698]
[1769846732504,0.96625642,2678.9,2678.4,3.87797772]
[1769846732716,3.8213795,2679.1,2678.5,0.18697]
[1769846733017,2.75113354,2678.8,2678.5,3.87796772]
[1769846733221,3.90093382,2679.0,2678.5,3.87796772]
[1769846733405,3.8213795,2679.5,2678.5,3.87796772]
[1769846733807,7.72231332,2679.4,2678.5,3.87796772]
[1769846734109,3.8213795,2679.4,2678.5,3.87796772]
[1769846734506,7.72231332,2679.3,2678.5,3.87796772]
[1769846734907,3.8213795,2679.3,2678.5,3.87796772]
[1769846735117,4.04200914,2679.2,2678.5,3.87796772]
[1769846736418,2.83820242,2679.4,2678.5,3.87796772]
[1769846739317,6.51452068,2679.4,2678.5,3.87796772]
[1769846739619,3.67631826,2679.4,2678.5,3.87796772]
[1769846739923,4.31446764,2679.3,2678.5,3.87796772]
[1769846740221,4.31446764,2679.3,2678.6,4.03735737]
[1769846742323,7.9907859,2679.3,2678.6,4.03735737]
[1769846742625,3.67631826,2679.3,2678.6,4.03735737]
[1769846743020,4.27606087,2679.2,2678.6,4.03735737]
[1769846743425,3.67631826,2679.1,2678.2,3.85039737]
[1769846743921,7.6317809,2679.0,2678.2,3.85039737]
[1769846744423,3.67631826,2679.0,2678.2,3.85039737]
[1769846744816,7.99229834,2678.9,2678.2,3.85039737]
[1769846745118,3.67631826,2678.9,2678.2,3.85039737]
[1769846747424,7.78319241,2678.8,2678.2,3.85039737]
[1769846747726,3.67631826,2678.8,2678.2,3.85039737]
[1769846748621,3.67631826,2678.8,2677.9,0.18701]
[1769846748826,3.67631826,2678.6,2677.9,0.10573]
[1769846749226,3.67631826,2678.4,2677.9,0.10573]
[1769846749622,3.93535061,2678.5,2677.9,0.10573]
[1769846749623,7.61166887,2678.3,2677.9,0.10573]
[1769846749927,3.67631826,2678.3,2677.9,0.10573]
[1769846750427,4.08194193,2678.2,2677.9,0.10573]
[1769846750832,7.75826019,2678.2,2676.8,3.85039737]
[1769846751128,3.67631826,2678.1,2676.8,3.85039737]
[1769846751634,7.67954995,2678.1,2676.8,3.85039737]
[1769846752326,7.67954995,2678.1,2677.2,4.03745737]
[1769846752827,3.67631826,2678.0,2676.9,3.85039737]
[1769846753223,3.67631826,2677.8,2676.9,3.85039737]
[1769846753419,0.0033211,2677.8,2677.3,3.85039737]
[1769846753620,3.98837838,2678.0,2677.3,3.85039737]
[1769846753826,3.67631826,2678.3,2677.3,3.85039737]
[1769846754025,3.98837838,2678.2,2677.3,3.85039737]
[1769846754228,3.98837838,2678.2,2677.5,3.85039737]
[1769846754623,3.99222484,2678.2,2677.5,3.85304308]
[1769846756229,3.99222484,2678.2,2677.6,0.18704]
[1769846756425,3.99222484,2678.2,2676.5,14.013]
[1769846756426,3.67631826,2678.1,2677.0,0.18708]
[1769846756831,3.67631826,2677.9,2677.0,0.18708]
[1769846757229,4.20996575,2677.8,2677.0,0.18708]
[1769846757623,3.67631826,2677.7,2677.0,0.18708]
[1769846757927,3.67631826,2677.5,2676.5,4.03750737]
[1769846758132,3.67631826,2677.5,2676.5,0.18711]
[1769846758328,3.67631826,2677.3,2676.5,0.18711]
[1769846758925,7.87737249,2677.2,2676.5,0.18711]
[1769846759322,3.67631826,2677.2,2676.5,0.18711]
[1769846759533,4.00568775,2677.1,2676.5,0.18711]
[1769846761227,3.67631826,2677.4,2676.7,3.85039737]
[1769846761530,4.27740763,2677.3,2676.7,3.85039737]
[1769846761835,4.27740763,2677.5,2676.7,3.85039737]
[1769846762034,7.95372589,2677.5,2676.7,3.85039737]
[1769846762334,3.67631826,2677.5,2676.7,3.85039737]
[1769846762535,3.67631826,2677.8,2676.9,4.03747737]
[1769846762734,1.86684328,2677.4,2676.9,4.03747737]
[1769846762938,4.06169218,2677.7,2676.9,4.03747737]
[1769846763132,3.67631826,2677.8,2676.9,4.03747737]
[1769846763338,3.67631826,2677.8,2677.0,4.03747737]
[1769846763537,4.07766635,2677.7,2677.0,4.03747737]
[1769846764426,4.07766635,2677.7,2677.1,4.03746737]
[1769846764629,3.67631826,2678.1,2677.1,4.03746737]
[1769846765133,3.96748186,2677.9,2677.1,4.03746737]
[1769846765325,3.96748186,2678.0,2677.1,4.03746737]
[1769846765528,3.67631826,2678.1,2677.2,4.03746737]
[1769846765730,3.91867906,2678.0,2677.2,4.03746737]
[1769846766329,3.91867906,2678.0,2677.4,4.03744737]
[1769846767233,3.91867906,2678.0,2676.6,2.192]
[1769846767234,3.91867906,2678.0,2677.6,3.74739]
[1769846767737,2.943259,2678.0,2677.6,3.93443]
[1769846767931,6.46e-06,2678.2,2677.8,3.74739]
[1769846768334,6.46e-06,2678.2,2676.6,2.192]
[1769846768335,6.46e-06,2678.2,2677.9,3.74739]
[1769846769136,6.46e-06,2678.2,2678.1,0.187]
[1769846769339,6.46e-06,2678.2,2678.1,3.93439]
[1769846770935,3.84170902,2679.6,2678.7,3.93435]
[1769846771238,4.14300317,2679.5,2678.7,3.93435]
[1769846771833,4.1463943,2679.5,2678.7,3.93435]
[1769846776043,3.84170902,2679.4,2678.7,0.18696]
[1769846776247,3.84170902,2679.4,2678.2,3.74739]
[1769846776449,3.84170902,2679.2,2678.3,0.18699]
[1769846776745,3.97484871,2679.1,2677.9,0.00344812]
[1769846776949,3.84170902,2679.0,2677.9,0.00344812]
[1769846777246,4.07214075,2678.9,2677.9,0.00344812]
[1769846777447,3.84170902,2678.8,2677.9,0.00344812]
[1769846777748,4.07214075,2678.7,2677.9,0.00344812]
[1769846778257,3.84170902,2678.6,2678.3,0.18699]
[1769846778548,3.99263459,2678.5,2677.9,0.00344812]
[1769846779161,3.99263459,2678.5,2678.3,0.18699]
[1769846779453,3.99263459,2678.5,2677.9,0.00344812]
[1769846779752,3.84170902,2678.4,2677.7,0.18703]
[1769846780150,4.03580642,2678.3,2677.7,0.18703]
[1769846780750,4.03580642,2678.3,2677.7,0.18810373]
[1769846781955,4.03580642,2678.3,2677.3,3.74739]
[1769846782156,7.87751544,2678.3,2677.3,3.74739]
[1769846782354,3.84170902,2678.3,2677.3,3.74739]
[1769846782557,3.94470816,2678.2,2677.3,3.74739]
[1769846783356,3.94470816,2678.2,2677.7,3.93442]
[1769846786158,3.94470816,2678.2,2677.7,0.18703]
[1769846790758,7.78641718,2678.2,2677.7,0.18703]
[1769846794072,3.94470816,2678.2,2677.7,3.93442]
[1769846794474,3.37655816,2678.2,2677.7,3.74739]
[1769846794677,3.84170902,2678.6,2677.9,3.9344]
[1769846795169,4.3220136,2678.5,2677.9,3.9344]
[1769846797373,8.18018583,2678.5,2677.9,3.9344]
[1769846800675,8.18018583,2678.5,2677.9,0.18701]
[1769846804878,8.18018583,2678.5,2677.9,4.06282828]
[1769846805173,3.66084004,2679.1,2678.4,3.87581828]
[1769846805376,3.96436999,2679.2,2678.7,0.18696]
[1769846805577,3.66084004,2679.2,2678.7,0.18696]
[1769846807079,3.66084004,2679.2,2678.7,4.06277828]
[1769846807482,3.66084004,2679.4,2678.7,4.06277828]
[1769846807883,7.80670902,2679.4,2678.7,4.06277828]
[1769846808972,3.66084004,2679.3,2678.7,4.06277828]
[1769846809383,3.66084004,2679.3,2678.7,0.18696]
[1769846815182,3.66084004,2679.3,2678.8,4.06276828]
[1769846815388,3.28341178,2679.3,2678.8,4.06276828]
[1769846815987,0.00339113,2679.5,2678.8,4.06276828]
[1769846816382,3.95152559,2679.4,2678.8,4.06276828]
[1769846817289,7.61236563,2679.4,2678.8,4.06276828]
[1769846820590,3.95152559,2679.4,2679.0,3.87581828]
[1769846820789,3.66084004,2679.3,2678.9,0.18694]
[1769846821094,0.00339113,2679.5,2678.9,0.18694]
[1769846821292,3.66423117,2679.5,2678.9,0.18694]
[1769846821500,3.97721757,2679.4,2678.9,0.18694]
[1769846821790,7.63805761,2679.4,2678.9,0.18694]
[1769846821993,7.63805761,2679.4,2678.9,4.06275828]
[1769846822192,0.00339113,2679.5,2679.2,0.18692]
[1769846822694,0.00339113,2679.5,2679.2,4.06273828]
[1769846824893,0.00339113,2679.5,2679.3,4.06273828]
[1769846825389,3.66084004,2680.5,2679.8,0.18688]
[1769846825796,3.66084004,2680.3,2679.5,0.1869]
[1769846825991,3.66084004,2680.3,2678.8,3.87581828]
[1769846826294,3.66084004,2680.1,2678.5,3.87581828]
[1769846826495,3.66535201,2680.1,2678.5,3.87920941]
[1769846826694,3.85093286,2679.9,2678.5,3.87920941]
[1769846827094,3.85093286,2679.7,2678.5,3.87920941]
[1769846827295,3.85093286,2679.7,2678.7,0.18696]
[1769846827591,3.85093286,2679.5,2678.7,0.18696]
[1769846827995,5.01611092,2679.4,2678.7,0.18696]
[1769846828294,3.85093286,2679.4,2678.7,0.18696]
[1769846829501,3.85093286,2679.4,2677.2,11.173108]
[1769846829695,3.85093286,2679.2,2678.2,3.75759427]
[1769846829996,5.95501957,2680.0,2678.5,3.57060427]
[1769846829997,4.19671507,2679.1,2678.5,3.57060427]
[1769846830295,3.93078276,2679.2,2678.5,3.57060427]
[1769846830698,3.93078276,2679.3,2678.5,3.57060427]
[1769846830897,3.85093286,2679.4,2678.5,3.57060427]
[1769846831087,3.93078276,2679.3,2678.5,3.57060427]
[1769846831292,7.78171562,2679.3,2678.5,3.57060427]
[1769846831691,3.85093286,2679.3,2678.5,3.57060427]
[1769846831896,4.3328193,2679.2,2678.5,3.57060427]
[1769846833398,8.18375216,2679.2,2678.5,3.57060427]
[1769846839910,3.85093286,2679.1,2678.5,3.57060427]
[1769846840810,3.85093286,2679.1,2678.4,0.18698]
[1769846842410,3.85093286,2678.9,2678.4,0.18698]
[1769846842713,3.85093286,2678.6,2677.8,3.57060427]
[1769846842914,3.85093286,2678.3,2677.7,0.18703]
[1769846843305,3.85093286,2678.1,2677.7,0.18703]
[1769846843504,3.85424588,2678.1,2677.4,3.57060427]
[1769846843801,3.85424588,2678.1,2677.7,0.18702]
[1769846844008,8.00962962,2678.0,2677.4,0.18705]
[1769846844211,3.85093286,2677.9,2677.0,3.57060427]
[1769846844509,3.85093286,2677.9,2677.4,0.18705]
[1769846844705,4.23167634,2677.8,2677.0,3.57060427]
[1769846845011,3.85093286,2677.7,2677.0,3.57060427]
[1769846845211,3.85093286,2677.7,2676.9,0.18708]
[1769846846512,7.97228655,2677.6,2676.9,0.18708]
[1769846847005,3.85093286,2677.6,2676.9,0.18708]
[1769846847207,3.85093286,2677.6,2676.8,3.57060427]
[1769846847808,3.85093286,2678.0,2677.0,3.75767427]
[1769846848208,7.88682587,2678.0,2677.0,3.75767427]
[1769846848608,3.85093286,2677.9,2677.0,3.75767427]
[1769846848914,4.00554897,2677.8,2677.0,3.75767427]
[1769846851520,4.00554897,2677.8,2677.1,3.75767427]
[1769846852521,3.85093286,2677.9,2677.1,3.75767427]
[1769846855816,3.85093286,2677.9,2677.1,0.18707]
[1769846856015,3.85093286,2677.7,2677.1,0.18707]
[1769846856220,3.85093286,2677.4,2676.3,3.57060427]
[1769846856423,3.85093286,2677.4,2676.2,1.24127692]
[1769846856424,3.85093286,2677.4,2676.7,0.1871]
[1769846857820,3.86729969,2677.2,2676.7,0.1871]
[1769846858526,3.86729969,2677.2,2676.5,3.57060427]
[1769846858822,3.86729969,2677.2,2676.7,0.1871]
[1769846859015,3.86729969,2677.2,2676.3,3.68229611]
[1769846860521,3.86729969,2677.2,2676.1,3.63533671]
[1769846860829,3.68759177,2677.0,2676.4,0.18712]
[1769846861025,3.68759177,2677.0,2676.1,3.63533671]
[1769846861220,1.24127692,2677.2,2676.4,0.18712]
[1769846861221,7.77594421,2676.9,2676.4,0.18712]
[1769846861421,3.68759177,2676.8,2676.4,0.18712]
[1769846861621,3.68759177,2676.8,2676.4,0.124498]
[1769846864028,3.68759177,2676.8,2676.1,3.63533671]
[1769846864223,7.65394058,2676.7,2675.8,3.63533671]
[1769846864624,3.68759177,2676.7,2675.8,3.63533671]
[1769846864827,3.68759177,2676.5,2675.9,0.18716]
[1769846865224,3.68759177,2676.3,2675.9,0.18716]
[1769846867526,3.68759177,2676.3,2675.0,12.858]
[1769846867527,3.68759177,2676.3,2675.3,3.63533671]
[1769846867831,3.68759177,2676.1,2675.3,3.63533671]
[1769846868133,3.69022554,2676.1,2675.9,0.18716]
[1769846868427,3.69022554,2676.1,2675.3,3.63533671]